bitfinex/quotes_ETHUSD_20250215
["timestamp","ask_amount","ask_price","bid_price","bid_amount"]
[1739604544672,3.69633,2705.4,2705.1,0.8128]
[1739604545179,3.69633,2705.4,2704.9,5.50773162]
[1739604545472,3.69633,2705.4,2704.9,6.42821678]
[1739604546274,3.69645,2705.3,2704.9,6.42821678]
[1739604546635,4.6167335,2705.5,2704.9,6.42821678]
[1739604546888,3.69632,2705.4,2704.9,6.42821678]
[1739604547705,4.6167335,2705.5,2704.9,6.42821678]
[1739604547903,3.69631,2705.4,2705.0,1.01253368]
[1739604548387,3.8421335,2705.5,2705.0,1.01253368]
[1739604548587,3.8421335,2705.5,2705.1,0.8018]
[1739604548982,0.1459435,2705.5,2705.1,2.50773162]
[1739604549215,0.1459435,2705.5,2705.2,3.0]
[1739604550837,0.1459435,2705.5,2705.2,4.02170853]
[1739604553946,3.8421335,2705.5,2705.2,4.02170853]
[1739604559270,0.1459435,2705.5,2705.2,4.02170853]
[1739604559555,0.1459435,2705.5,2705.3,0.7598]
[1739604564067,0.1459435,2705.5,2705.3,2.46573162]
[1739604564366,0.1459435,2705.5,2705.4,4.01839401]
[1739604564524,1.70593162,2706.3,2705.4,4.01839401]
[1739604564525,0.3699,2707.7,2706.9,3.7598]
[1739604564725,0.3699,2707.7,2707.0,1.70593162]
[1739604564922,0.3699,2707.7,2706.5,3.69476]
[1739604564923,0.8055,2707.6,2706.5,0.7598]
[1739604565172,3.6944,2706.8,2706.1,0.7598]
[1739604565581,0.8055,2706.9,2706.1,0.7598]
[1739604565769,4.49935,2707.2,2706.3,3.0]
[1739604566095,3.69424,2707.0,2706.4,1.70593162]
[1739604566299,3.69426,2706.9,2706.4,1.70593162]
[1739604566453,0.8055,2707.2,2706.4,1.70593162]
[1739604566650,3.69457,2706.7,2706.4,1.70593162]
[1739604567467,3.69457,2706.7,2706.2,1.70593162]
[1739604569322,0.272,2707.0,2706.2,1.70593162]
[1739604569796,3.69459,2706.7,2706.2,1.70593162]
[1739604570259,3.69484,2706.5,2706.2,1.70593162]
[1739604570898,3.69484,2706.5,2706.1,0.7598]
[1739604571396,3.69508,2706.3,2705.8,1.70593162]
[1739604571604,3.6955,2706.0,2705.6,1.70593162]
[1739604572398,3.6955,2706.0,2705.6,2.32272978]
[1739604572692,3.6955,2706.0,2705.6,1.70593162]
[1739604573103,3.69523,2706.2,2705.8,1.70593162]
[1739604573506,3.69496,2706.4,2705.8,1.70593162]
[1739604573692,3.69496,2706.4,2705.8,0.7658]
[1739604574010,3.69496,2706.4,2705.9,3.0]
[1739604574305,3.69496,2706.4,2705.9,1.46719854]
[1739604575082,3.69496,2706.4,2705.8,7.46152]
[1739604575272,3.69496,2706.4,2705.8,3.7658]
[1739604579527,3.69508,2706.3,2705.8,3.7658]
[1739604582231,3.69523,2706.2,2705.8,3.7658]
[1739604583484,5.26741058,2706.8,2706.1,3.0]
[1739604583485,3.69473,2706.6,2706.1,3.0]
[1739604584796,3.69473,2706.6,2706.2,0.7965]
[1739604586418,4.79792,2706.8,2706.2,0.7965]
[1739604586621,3.69463,2706.7,2706.2,0.7965]
[1739604588325,3.6947,2706.6,2706.2,0.7965]
[1739604589432,3.69483,2706.5,2706.2,0.7965]
[1739604590141,3.6947,2706.6,2706.2,0.7965]
[1739604590293,3.69484,2706.5,2706.2,0.7965]
[1739604590495,3.69484,2706.5,2706.1,3.0]
[1739604590724,3.6947,2706.6,2706.1,3.51196767]
[1739604591796,3.69484,2706.5,2706.1,3.51196767]
[1739604592825,3.6947,2706.6,2706.1,3.51196767]
[1739604593033,7.38948,2706.6,2706.1,3.51196767]
[1739604593407,3.6947,2706.6,2706.1,3.51196767]
[1739604594723,3.6947,2706.6,2706.2,0.78231331]
[1739604597856,3.69453,2706.7,2706.2,0.78231331]
[1739604598357,3.69468,2706.6,2706.2,0.78231331]
[1739604599526,3.69463,2706.7,2706.3,0.8306]
[1739604600610,3.69468,2706.6,2706.3,0.8306]
[1739604600910,3.69468,2706.6,2706.1,4.34256767]
[1739604601110,3.69497,2706.4,2706.1,1.34256767]
[1739604601424,3.69497,2706.4,2706.1,0.8306]
[1739604602515,3.69486,2706.5,2706.1,0.8306]
[1739604602942,3.69496,2706.4,2706.1,0.8306]
[1739604604470,4.50662,2706.6,2706.1,0.8306]
[1739604604635,3.69494,2706.4,2706.1,0.8306]
[1739604606664,3.69472,2706.6,2706.1,0.8306]
[1739604606905,3.69486,2706.5,2706.1,0.8306]
[1739604607664,3.69472,2706.6,2706.2,3.0]
[1739604607838,3.69472,2706.6,2706.3,1.70401101]
[1739604608236,3.69472,2706.6,2706.4,0.8306]
[1739604608437,3.69443,2706.8,2706.5,4.70401101]
[1739604608642,7.38896,2706.8,2706.5,4.70401101]
[1739604608841,3.69457,2706.7,2706.5,4.70401101]
[1739604609042,3.69457,2706.7,2706.5,3.0]
[1739604609551,3.69443,2706.8,2706.5,3.0]
[1739604609869,7.38894,2706.8,2706.5,3.0]
[1739604610023,3.69461,2706.7,2706.5,3.0]
[1739604611253,3.69467,2706.6,2706.5,3.0]
[1739604612055,3.69496,2706.4,2706.2,0.7556]
[1739604612252,3.69496,2706.4,2706.1,0.1496]
[1739604612581,4.52801,2706.2,2706.1,0.1496]
[1739604613586,3.69643,2705.4,2704.9,4.26936813]
[1739604613943,3.69643,2705.4,2705.0,3.0]
[1739604614164,3.69659,2705.2,2704.9,0.7556]
[1739604614982,3.69701,2704.9,2704.6,0.7556]
[1739604617684,4.52956,2705.1,2704.6,0.7556]
[1739604617893,3.69649,2705.3,2704.6,0.7556]
[1739604618058,3.69659,2705.2,2704.6,3.7556]
[1739604618849,4.79812,2705.4,2704.9,3.0]
[1739604618850,0.8328,2705.4,2704.9,3.0]
[1739604619194,1.1018,2705.7,2705.0,0.7556]
[1739604619498,3.96494,2705.7,2705.1,3.0]
[1739604619786,0.269,2705.7,2705.1,6.69667]
[1739604619990,3.69588,2705.8,2705.2,3.51376813]
[1739604620193,3.69588,2705.8,2705.3,3.0]
[1739604620399,0.8328,2706.3,2705.5,3.51376813]
[1739604620693,3.69457,2706.7,2706.1,3.51376813]
[1739604620897,3.69472,2706.6,2706.2,3.0]
[1739604621399,3.69484,2706.5,2706.0,3.0]
[1739604622775,3.69484,2706.5,2705.9,3.0]
[1739604623611,3.6951,2706.3,2705.9,3.0]
[1739604625175,3.69484,2706.5,2705.9,3.0]
[1739604625364,3.69523,2706.2,2705.9,3.0]
[1739604626922,3.69536,2706.1,2705.8,0.7556]
[1739604627107,3.69561,2706.0,2705.5,4.31706813]
[1739604627404,3.69561,2706.0,2705.6,3.0]
[1739604628331,3.6948,2706.5,2705.6,7.42771681]
[1739604628500,3.6948,2706.5,2705.8,3.51376813]
[1739604628698,3.69508,2706.3,2705.8,3.51376813]
[1739604629195,3.69522,2706.2,2705.7,3.0]
[1739604629399,3.69508,2706.3,2705.7,3.0]
[1739604629601,3.69485,2706.5,2705.8,3.69575]
[1739604629804,3.69485,2706.5,2705.9,3.0]
[1739604629984,3.69457,2706.7,2706.0,0.8033]
[1739604630184,3.6943,2706.9,2706.1,3.0]
[1739604630498,3.69441,2706.8,2706.4,3.0]
[1739604631827,3.69441,2706.8,2706.2,3.0]
[1739604632031,3.69456,2706.7,2706.2,3.0]
[1739604633328,3.6943,2706.9,2706.2,6.69517]
[1739604633631,3.69441,2706.8,2706.2,6.69517]
[1739604635032,1.0421,2707.1,2706.3,0.03694927]
[1739604635033,4.46713,2707.1,2706.3,0.03694927]
[1739604635218,4.73613,2707.1,2706.2,8.02808063]
[1739604635526,3.69413,2707.0,2706.4,3.69489]
[1739604635733,4.73613,2707.1,2706.4,3.69489]
[1739604636030,4.46671,2707.4,2706.5,4.172789]
[1739604636533,4.46671,2707.4,2706.8,3.0]
[1739604637309,5.855,2707.7,2707.0,3.0]
[1739604637310,6.6281,2707.7,2707.0,3.0]
[1739604637521,10.32128,2707.7,2707.2,3.0]
[1739604637723,9.54818,2707.7,2707.2,3.0]
[1739604638037,5.855,2707.7,2707.2,3.0]
[1739604638339,5.855,2707.7,2707.4,3.0]
[1739604639491,5.855,2707.7,2707.5,4.49674]
[1739604639734,3.69263,2708.1,2707.6,3.0]
[1739604640306,3.69277,2708.0,2707.5,0.8033]
[1739604640539,3.8384735,2708.2,2707.5,0.8033]
[1739604640763,3.8384735,2708.2,2707.6,3.0]
[1739604640764,3.69266,2708.1,2707.6,3.0]
[1739604640969,3.8384735,2708.2,2707.6,3.0]
[1739604641167,3.8384735,2708.2,2707.6,10.99364366]
[1739604641168,0.1459435,2708.2,2707.6,10.99364366]
[1739604641463,0.1459435,2708.2,2707.6,10.95671213]
[1739604641776,3.8384635,2708.2,2707.6,10.95671213]
[1739604642168,3.8384635,2708.2,2707.6,7.26343213]
[1739604642369,3.69288,2708.0,2707.6,7.26343213]
[1739604642672,3.69276,2708.0,2707.5,0.8033]
[1739604642968,3.69293,2707.9,2707.5,0.8033]
[1739604643167,3.69276,2708.0,2707.5,0.8033]
[1739604645262,3.8384435,2708.2,2707.5,0.8033]
[1739604646135,3.69289,2708.0,2707.5,0.8033]
[1739604646331,3.69263,2708.1,2707.5,1.90437581]
[1739604646532,3.6928,2708.0,2707.5,0.8033]
[1739604647070,3.69312,2707.8,2707.5,0.8033]
[1739604647444,3.69312,2707.8,2707.4,3.0]
[1739604651375,3.69283,2708.0,2707.4,3.0]
[1739604651578,3.69294,2707.9,2707.4,3.0]
[1739604651886,3.69294,2707.9,2707.4,4.10295781]
[1739604654359,3.69313,2707.8,2707.4,4.10295781]
[1739604655086,3.69292,2707.9,2707.4,4.10295781]
[1739604655449,3.69309,2707.8,2707.4,4.10295781]
[1739604656085,0.1459435,2708.2,2707.0,0.822]
[1739604656086,3.69368,2707.4,2707.0,0.822]
[1739604656793,3.69387,2707.2,2707.0,0.822]
[1739604657586,3.69368,2707.4,2707.0,0.822]
[1739604658864,3.69332,2707.6,2707.0,3.822]
[1739604659969,3.69356,2707.5,2707.0,3.822]
[1739604660169,3.69356,2707.5,2707.0,4.92499181]
[1739604661271,3.69381,2707.3,2707.0,0.822]
[1739604661584,3.694,2707.1,2706.7,0.8087]
[1739604662300,3.69429,2706.9,2706.7,0.8087]
[1739604662495,3.69413,2707.0,2706.7,0.8087]
[1739604663082,3.69413,2707.0,2706.4,3.8087]
[1739604663400,3.69443,2706.8,2706.4,0.8087]
[1739604663781,3.69413,2707.0,2706.4,4.61045781]
[1739604663985,7.38837,2707.0,2706.4,4.61045781]
[1739604664150,3.69394,2707.2,2706.6,3.0]
[1739604664359,3.69394,2707.2,2706.7,3.8087]
[1739604665168,3.96263,2707.4,2706.7,3.8087]
[1739604665169,0.269,2707.4,2706.7,3.8087]
[1739604665494,3.69331,2707.6,2707.1,0.8087]
[1739604665801,3.69345,2707.5,2707.1,0.8087]
[1739604666387,3.69331,2707.6,2707.1,0.8087]
[1739604666700,3.69354,2707.5,2707.1,0.8087]
[1739604667108,7.3871,2707.5,2707.1,0.8087]
[1739604667401,3.69354,2707.5,2707.1,0.8087]
[1739604668996,3.69372,2707.3,2707.1,0.8087]
[1739604669180,3.69354,2707.5,2707.1,0.8087]
[1739604669382,0.802,2707.9,2707.2,3.0]
[1739604669672,3.69314,2707.8,2707.3,0.8087]
[1739604670218,3.6932,2707.7,2707.3,0.8087]
[1739604671308,3.69338,2707.6,2707.3,0.8087]
[1739604672972,3.69347,2707.5,2707.3,0.8087]
[1739604673268,3.69358,2707.4,2707.3,0.8087]
[1739604673497,3.69338,2707.6,2707.3,0.8087]
[1739604673813,3.69345,2707.5,2707.3,0.8087]
[1739604674684,3.69358,2707.4,2707.1,0.8159]
[1739604675099,0.7973,2707.8,2707.0,0.1]
[1739604675408,3.69398,2707.1,2707.0,0.1]
[1739604680746,4.49128,2707.1,2707.0,0.1]
[1739604688667,4.76028,2707.1,2707.0,0.1]
[1739604693668,4.76028,2707.1,2707.0,1e-05]
[1739604694136,5.31028,2707.1,2707.0,1e-05]
[1739604699838,4.76028,2707.1,2707.0,1e-05]
[1739604707095,6.97828,2707.1,2707.0,1e-05]
[1739604707300,4.76028,2707.1,2707.0,1e-05]
[1739604716694,4.76028,2707.1,2707.0,1e-05]
[1739604720791,3.96298,2707.1,2707.0,1e-05]
[1739604726642,4.76628,2707.1,2707.0,1e-05]
[1739604736468,3.96298,2707.1,2707.0,1e-05]
[1739604738273,3.69398,2707.1,2707.0,1e-05]
[1739604738564,3.69398,2707.1,2707.0,0.79351]
[1739604744846,3.19405468,2707.1,2707.0,0.79351]
[1739604749092,3.69363,2707.4,2707.0,0.79351]
[1739604749252,7.38734,2707.4,2707.0,0.79351]
[1739604749602,3.69397,2707.2,2707.0,0.79351]
[1739604750191,7.38794,2707.2,2707.0,0.79351]
[1739604750377,3.69398,2707.1,2707.0,0.79351]
[1739604752654,3.69398,2707.1,2707.0,1e-05]
[1739604753510,4.50768,2707.1,2707.0,1e-05]
[1739604755079,5.05768,2707.1,2707.0,1e-05]
[1739604755973,19.64144813,2707.1,2707.0,1e-05]
[1739604756176,16.12768,2707.1,2707.0,1e-05]
[1739604756808,19.64144813,2707.1,2707.0,1e-05]
[1739604756970,16.12768,2707.1,2707.0,1e-05]
[1739604757514,16.30981289,2707.1,2707.0,1e-05]
[1739604760306,21.61981289,2707.1,2707.0,1e-05]
[1739604760512,25.13358102,2707.1,2707.0,1e-05]
[1739604760816,25.23358102,2707.1,2707.0,1e-05]
[1739604760975,29.31814293,2707.1,2707.0,1e-05]
[1739604761178,3.69603,2705.6,2705.5,0.7637]
[1739604761974,3.69672,2705.1,2704.9,0.7637]
[1739604762815,3.69646,2705.3,2704.9,0.7637]
[1739604763317,3.69672,2705.1,2704.9,0.7637]
[1739604763521,3.69685,2705.0,2704.9,0.7637]
[1739604763887,3.69672,2705.1,2704.9,0.7637]
[1739604764092,3.69644,2705.4,2704.9,0.7637]
[1739604764321,3.69645,2705.3,2704.9,0.7637]
[1739604764619,3.69659,2705.2,2704.9,0.7637]
[1739604764817,3.69673,2705.1,2704.9,1.14007]
[1739604765025,3.69659,2705.2,2704.9,0.7637]
[1739604765381,3.6968,2705.1,2704.9,0.7637]
[1739604767288,3.69659,2705.2,2704.9,0.7637]
[1739604767702,3.69676,2705.1,2704.9,0.7637]
[1739604769308,3.69674,2705.1,2704.9,0.7637]
[1739604770246,4.44660948,2705.4,2704.9,0.7637]
[1739604770417,3.69655,2705.3,2704.9,0.7637]
[1739604770925,4.44660948,2705.4,2704.9,0.7637]
[1739604771126,3.69653,2705.3,2704.9,0.7637]
[1739604771534,4.44660948,2705.4,2704.9,0.7637]
[1739604771692,8.14303948,2705.4,2704.9,1.509789]
[1739604772298,3.69601,2705.7,2705.0,0.7637]
[1739604772449,0.269,2705.6,2705.1,0.7637]
[1739604772813,3.6962,2705.5,2705.1,0.7637]
[1739604773042,3.6962,2705.5,2705.1,1.5843669]
[1739604773427,3.69572,2705.9,2705.3,0.7637]
[1739604773630,3.69582,2705.8,2705.3,0.7637]
[1739604773947,3.69591,2705.7,2705.3,0.7637]
[1739604775238,3.69613,2705.6,2705.3,0.7637]
[1739604775752,3.69591,2705.7,2705.3,0.7637]
[1739604775907,3.69614,2705.6,2705.3,0.7637]
[1739604776314,3.69626,2705.5,2705.3,0.7637]
[1739604777953,3.6966,2705.2,2705.0,0.7707]
[1739604778159,3.69672,2705.1,2705.0,0.7707]
[1739604779041,3.6966,2705.2,2705.0,0.7707]
[1739604780056,7.39331,2705.2,2705.0,0.7707]
[1739604780214,3.6966,2705.2,2705.0,0.7707]
[1739604781061,3.69647,2705.3,2705.0,0.7707]
[1739604781362,6.0662,2705.9,2705.0,1.14777]
[1739604781510,6.0662,2705.9,2705.0,0.7707]
[1739604781511,3.69639,2705.4,2705.0,0.7707]
[1739604781953,3.69645,2705.3,2705.0,0.7707]
[1739604783329,3.69622,2705.5,2705.0,0.7707]
[1739604783747,3.69646,2705.3,2705.0,0.7707]
[1739604784378,3.69659,2705.2,2705.0,0.7707]
[1739604784530,3.69672,2705.1,2705.0,0.7707]
[1739604785028,7.39356,2705.1,2704.8,0.7707]
[1739604785234,3.69672,2705.1,2704.8,0.7707]
[1739604789282,3.69648,2705.3,2704.8,0.7707]
[1739604789434,3.69648,2705.3,2704.8,4.14777]
[1739604789773,3.69648,2705.3,2704.8,7.07417]
[1739604790073,3.69648,2705.3,2704.9,0.7707]
[1739604790581,3.69622,2705.5,2704.9,0.7707]
[1739604790748,7.66151,2705.5,2705.0,3.0]
[1739604791158,3.69646,2705.3,2705.0,3.0]
[1739604792905,3.69646,2705.3,2704.9,0.7707]
[1739604793107,3.69681,2705.1,2704.9,0.7707]
[1739604793292,7.39364,2705.1,2704.9,0.7707]
[1739604793497,3.69681,2705.1,2704.9,0.7707]
[1739604794201,3.6965,2705.3,2704.9,0.7707]
[1739604794706,3.69659,2705.2,2704.9,0.7707]
[1739604795566,3.69673,2705.1,2704.9,0.7707]
[1739604796162,3.69673,2705.1,2704.5,0.7775]
[1739604796709,3.69724,2704.8,2704.5,0.7775]
[1739604796883,3.6973,2704.7,2704.5,0.7775]
[1739604800428,3.69715,2704.8,2704.5,0.7775]
[1739604801014,3.69727,2704.7,2704.4,0.7775]
[1739604802352,3.69712,2704.9,2704.4,0.7775]
[1739604802515,7.39424,2704.9,2704.4,0.7775]
[1739604802816,3.69712,2704.9,2704.4,0.7775]
[1739604802998,3.69714,2704.8,2704.4,0.7775]
[1739604803184,3.69712,2704.9,2704.4,0.7775]
[1739604804028,3.69717,2704.8,2704.4,0.7775]
[1739604805519,3.69727,2704.7,2704.4,0.7775]
[1739604810796,7.39465,2704.7,2704.4,0.7775]
[1739604811134,3.69742,2704.6,2704.4,0.7775]
[1739604811431,3.69754,2704.5,2704.1,0.7937]
[1739604811635,3.69785,2704.3,2704.1,0.7937]
[1739604812301,3.69795,2704.2,2704.1,0.7937]
[1739604812503,3.69817,2704.1,2703.7,0.7937]
[1739604812710,3.69817,2704.1,2703.7,1.59432781]
[1739604813105,3.69817,2704.1,2703.7,4.59432781]
[1739604813708,3.69824,2704.0,2703.7,3.7937]
[1739604813898,3.69824,2704.0,2703.7,0.7937]
[1739604814097,3.69817,2704.1,2703.7,0.7937]
[1739604814427,3.69841,2703.9,2703.7,0.7937]
[1739604815345,3.69841,2703.9,2703.5,0.7937]
[1739604815844,3.69841,2703.9,2703.5,1.89435381]
[1739604816001,3.69858,2703.8,2703.5,1.89435381]
[1739604816201,3.69863,2703.7,2703.5,0.7937]
[1739604816403,3.69825,2704.0,2703.5,0.7937]
[1739604816803,7.39636,2704.1,2703.5,0.7937]
[1739604817046,3.69824,2704.0,2703.5,0.7937]
[1739604818438,3.69819,2704.1,2703.6,0.7937]
[1739604819248,3.69819,2704.1,2703.6,3.7937]
[1739604820747,3.69819,2704.1,2703.6,0.7937]
[1739604821245,3.69833,2704.0,2703.6,0.7937]
[1739604823337,3.69819,2704.1,2703.6,0.7937]
[1739604823541,3.69824,2704.0,2703.6,1.69002808]
[1739604824646,3.96703,2704.2,2703.6,4.69002808]
[1739604824882,3.96703,2704.2,2703.6,8.38876808]
[1739604825349,3.69803,2704.2,2703.6,8.38876808]
[1739604825955,3.69803,2704.2,2703.6,4.69002808]
[1739604826129,7.39609,2704.2,2703.7,3.98593889]
[1739604826652,3.69803,2704.2,2703.7,3.98593889]
[1739604827415,3.69803,2704.2,2703.8,0.7813]
[1739604833276,3.69772,2704.4,2703.9,3.69835]
[1739604833595,3.96672,2704.4,2704.1,0.7813]
[1739604834373,3.69772,2704.4,2704.1,0.7813]
[1739604834686,3.69784,2704.3,2704.1,0.7813]
[1739604835090,3.69772,2704.4,2704.1,0.7813]
[1739604837497,7.39552,2704.4,2704.1,0.7813]
[1739604837716,3.69772,2704.4,2704.1,0.7813]
[1739604840601,3.69792,2704.3,2703.9,0.8099]
[1739604841007,3.69772,2704.4,2703.9,1.24912972]
[1739604841530,5.24557184,2704.8,2704.0,0.8099]
[1739604841675,3.51376813,2705.3,2704.4,0.8099]
[1739604841676,10.63042,2705.2,2704.4,0.8099]
[1739604842029,7.39394,2705.0,2704.4,4.50757]
[1739604842178,3.69696,2705.0,2704.4,5.97949781]
[1739604843009,3.69701,2704.9,2704.4,2.28182781]
[1739604846016,3.69701,2704.9,2704.4,5.97948781]
[1739604846316,3.69701,2704.9,2704.5,0.7888]
[1739604846680,3.69717,2704.8,2704.5,0.7888]
[1739604847414,3.69701,2704.9,2704.5,0.7888]
[1739604848535,3.69701,2704.9,2704.5,1.31487278]
[1739604850318,3.69714,2704.8,2704.5,1.31487278]
[1739604850513,3.6974,2704.6,2704.1,0.7888]
[1739604852472,3.69727,2704.7,2704.2,3.0]
[1739604855183,3.69741,2704.6,2704.2,3.0]
[1739604855534,3.697,2704.9,2704.3,3.69777]
[1739604855754,3.6969,2705.0,2704.5,0.7719]
[1739604857775,3.69699,2704.9,2704.5,0.7719]
[1739604858861,3.69686,2705.0,2704.5,0.7719]
[1739604859477,7.39382,2705.0,2704.5,0.7719]
[1739604859678,3.69686,2705.0,2704.5,1.518846]
[1739604859973,0.268,2705.1,2704.5,1.518846]
[1739604860300,3.69699,2704.9,2704.5,1.518846]
[1739604860799,3.96483,2705.1,2704.6,0.7719]
[1739604861402,0.268,2705.1,2704.6,0.7719]
[1739604861562,3.69688,2705.0,2704.6,0.7719]
[1739604865806,7.39383,2705.0,2704.6,0.7719]
[1739604866005,3.69702,2704.9,2704.6,0.7719]
[1739604866619,3.69688,2705.0,2704.6,0.7719]
[1739604869191,3.69688,2705.0,2704.6,1.52468303]
[1739604870405,3.69688,2705.0,2704.6,0.7719]
[1739604871418,3.69701,2704.9,2704.6,0.7719]
[1739604878347,3.69694,2705.0,2704.6,0.7719]
[1739604879606,3.697,2704.9,2704.6,0.7719]
[1739604882945,3.96472,2705.1,2704.6,0.7719]
[1739604883912,3.69695,2705.0,2704.6,0.7719]
[1739604884331,3.69707,2704.9,2704.6,0.7719]
[1739604885351,3.69687,2705.0,2704.7,4.70604748]
[1739604886053,7.66155,2705.1,2704.7,4.70604748]
[1739604886425,7.39355,2705.1,2704.7,4.70604748]
[1739604886627,3.69656,2705.3,2704.9,1.70604748]
[1739604886955,3.69656,2705.3,2705.0,0.7789]
[1739604887708,3.69623,2705.5,2705.1,1.70604748]
[1739604887910,3.69623,2705.5,2705.3,1.70604748]
[1739604889231,3.69591,2705.7,2705.4,0.7789]
[1739604890439,0.75113793,2706.0,2705.6,0.7789]
[1739604890722,3.69536,2706.1,2705.7,1.70604748]
[1739604891060,3.6955,2706.0,2705.7,1.70604748]
[1739604891775,3.69559,2706.0,2705.6,1.32739475]
[1739604892177,4.4521923,2706.1,2705.6,1.32739475]
[1739604892474,3.69564,2705.9,2705.6,1.32739475]
[1739604895687,3.69577,2705.8,2705.6,1.32739475]
[1739604895979,3.69564,2705.9,2705.6,1.32739475]
[1739604897140,3.69582,2705.8,2705.6,1.32739475]
[1739604897883,3.69564,2705.9,2705.6,1.32739475]
[1739604898194,3.69564,2705.9,2705.7,0.43273948]
[1739604899283,3.69537,2706.1,2705.7,0.43273948]
[1739604899472,3.69549,2706.0,2705.7,0.43273948]
[1739604900387,3.69563,2705.9,2705.7,0.43273948]
[1739604900892,7.39136,2705.9,2705.7,0.43273948]
[1739604901046,3.69576,2705.8,2705.7,0.43273948]
[1739604901586,3.69563,2705.9,2705.7,0.43273948]
[1739604902272,3.69576,2705.8,2705.6,1.32739475]
[1739604903591,3.69576,2705.8,2705.2,3.69648]
[1739604903592,3.69603,2705.6,2705.3,0.7783]
[1739604904481,3.69631,2705.4,2705.1,6.51574053]
[1739604904782,3.69647,2705.3,2705.1,0.7783]
[1739604904985,3.69673,2705.1,2704.8,4.29404053]
[1739604905200,3.69689,2705.0,2704.8,0.7783]
[1739604905499,3.69713,2704.8,2704.6,0.7783]
[1739604905793,3.69713,2704.8,2704.4,3.7783]
[1739604905941,3.69713,2704.8,2704.5,0.37783]
[1739604906447,3.69713,2704.8,2704.4,0.7783]
[1739604906641,3.69689,2705.0,2704.4,0.7783]
[1739604906841,3.69715,2704.8,2704.4,0.7783]
[1739604907087,3.69729,2704.7,2704.4,0.7783]
[1739604907711,3.69715,2704.8,2704.4,0.7783]
[1739604908182,3.69715,2704.8,2704.4,1.50770405]
[1739604909027,3.69688,2705.0,2704.4,1.50770405]
[1739604909324,3.69688,2705.0,2704.6,3.0]
[1739604909893,3.69688,2705.0,2704.7,0.7783]
[1739604910384,3.69709,2704.9,2704.7,0.7783]
[1739604910825,3.69688,2705.0,2704.7,1.50770405]
[1739604911340,3.69688,2705.0,2704.7,0.7783]
[1739604912043,3.69662,2705.2,2704.7,0.7783]
[1739604912541,3.69673,2705.1,2704.7,0.7783]
[1739604912738,5.578,2705.3,2704.7,0.7783]
[1739604912950,3.6966,2705.2,2704.7,0.7783]
[1739604913097,3.6966,2705.2,2704.8,0.747569]
[1739604913438,5.31,2705.3,2704.8,3.747569]
[1739604913607,9.00653,2705.3,2704.8,3.747569]
[1739604913930,5.31,2705.3,2704.9,0.8149]
[1739604914240,5.31,2705.3,2704.9,3.8149]
[1739604914424,5.31,2705.3,2705.0,1.17752895]
[1739604914737,3.69629,2705.5,2705.0,1.17752895]
[1739604915532,3.69632,2705.4,2705.0,1.17752895]
[1739604917812,7.39276,2705.4,2705.0,1.17752895]
[1739604918024,3.69661,2705.2,2704.9,0.8149]
[1739604919104,3.69682,2705.1,2704.8,0.747569]
[1739604919403,3.69682,2705.1,2704.6,3.8149]
[1739604919641,3.69661,2705.2,2704.6,3.8149]
[1739604919942,3.69661,2705.2,2704.6,7.5123]
[1739604920135,3.69672,2705.1,2704.6,3.8149]
[1739604921842,3.69696,2705.0,2704.6,3.8149]
[1739604922009,3.6974,2704.6,2704.5,5.38]
[1739604922203,3.6974,2704.6,2704.3,0.8149]
[1739604922712,3.6974,2704.6,2704.2,3.51574053]
[1739604922713,3.69755,2704.5,2704.0,0.8149]
[1739604922917,3.69792,2704.3,2704.0,0.8149]
[1739604923216,3.69797,2704.2,2703.7,0.8149]
[1739604923432,3.69776,2704.4,2703.8,0.97106405]
[1739604923836,3.69776,2704.4,2703.8,3.97106405]
[1739604925250,3.69776,2704.4,2703.8,7.66950405]
[1739604926756,4.46785,2704.5,2703.8,7.66950405]
[1739604927119,4.46785,2704.5,2704.0,3.0]
[1739604928960,0.7703,2704.5,2704.0,3.0]
[1739604929126,3.69726,2704.8,2704.2,6.51574053]
[1739604929449,3.69726,2704.8,2704.3,0.7767]
[1739604929824,10.0984,2705.0,2704.4,3.0]
[1739604930023,3.69701,2704.9,2704.5,0.747451]
[1739604930437,9.00686,2705.0,2704.6,0.7767]
[1739604931852,9.00686,2705.0,2704.6,3.7767]
[1739604932553,0.05692747,2704.9,2704.6,3.7767]
[1739604938259,3.75391747,2704.9,2704.6,3.7767]
[1739604938463,3.75391747,2704.9,2704.6,4.95044615]
[1739604940459,3.69742,2704.6,2704.3,3.7575]
[1739604940666,3.75401192,2704.5,2704.1,6.1375]
[1739604940967,3.69784,2704.3,2704.1,5.38]
[1739604941257,3.75430811,2704.2,2704.1,5.38]
[1739604941492,3.69814,2704.1,2703.7,0.8109]
[1739604941778,0.05616487,2704.0,2703.7,1.24356405]
[1739604942076,3.69782,2704.3,2703.7,4.94218405]
[1739604942276,0.05616487,2703.9,2703.7,4.94218405]
[1739604942482,3.69783,2704.3,2703.7,1.24356405]
[1739604942676,3.69783,2704.3,2703.7,4.24356405]
[1739604942850,0.05616487,2704.2,2703.8,1.51566346]
[1739604943050,3.69783,2704.3,2703.8,1.51566346]
[1739604943374,0.05607789,2704.2,2703.8,1.51566346]
[1739604943605,3.69783,2704.3,2703.8,1.51566346]
[1739604943878,0.05607789,2704.2,2703.8,1.51566346]
[1739604944102,0.05607789,2704.2,2703.9,0.94577675]
[1739604944298,3.69783,2704.3,2703.9,0.94577675]
[1739604944450,0.05607789,2704.1,2703.9,0.94577675]
[1739604944650,3.69783,2704.3,2703.9,0.94577675]
[1739604944906,0.05607789,2704.2,2703.9,0.94577675]